{"text_format":"1","workbook":"xlsx","n_sheets":3,"sheets":["バリューボルドー記入シート","リスト","Sheet3"],"not_rendered":{"charts":0,"images":1,"macros":0,"external_links":1,"defined_names":11,"comments":0,"pivot_tables":0},"unopened":[],"bounds":{"document_bytes":16777216,"sheet_cells":100000,"rows_first":2000,"rows_last":500,"rows_between":2000,"halvings":0,"cell_chars":16384,"cell_head_chars":4096},"cells_cut":0,"cells_raw":0,"read":"whole","date_system":"1900"}

{"sheet":"バリューボルドー記入シート","index":0,"n_rows":85,"n_cols":29,"rows_kept":85,"cut":false,"hidden":false,"merged":[[31,1,31,3],[29,2,29,3],[29,5,29,7],[29,9,29,10],[30,2,30,3],[30,5,30,7],[30,9,30,10],[28,2,28,3],[28,5,28,7],[28,9,28,10],[0,1,0,9],[1,0,1,9],[5,1,5,9],[13,1,13,10],[14,1,14,9],[2,0,2,11]]}
[null,"◆バリューボルドー2015　ワイン調査表◆"]
["返信先：バリューボルドー2015事務局　value.bordeaux2015@sopexa.com"]
["リスト返信およびサンプルワインご提供締め切り：2015年4月10（金）　"]
[null,"＜エントリーについて＞"]
[null,"　　サンプルワイン到着とリスト返信、両者そろって初めてエントリー完了となります。ご注意ください。"]
[null,"　　2015年4月時点の価格で1000円～3500円（税込）以内の、フルボトルのワイン(750ｍｌ)を対象としています。"]
[null,"    ※甘口白ワインに限り、375ｍｌ、500ｍｌも対象になります。フルボトル以外のものをエントリーする場合は"]
[null,"    　 必ず備考欄にその旨を明記してください。"]
["　","　　※1銘柄につき1エントリーとなります。複数ヴィンテージ取り扱いの場合も、いずれか1ヴィンテージのみ、"]
[null,"　　　2015年6月時点で在庫が潤沢なヴィンテージにてエントリーください"]
[null,"＜記入方法＞"]
[null,"◆価格について"]
[null,"　入力の際は、価格形態を選択の上、必ず税込価格を入力してください。３５００を超える数字を入力するとエラーとなります。"]
[null,"　記入された現行ヴィンテージで、2015年6月時点で試飲会に応える在庫があり、2016年度通年販売が可能な商品でお願いいたします。"]
[null,"  終売になる恐れがあるものは登録をお控えください。また、必ず年間販売数（ケース単位）を入力してください。"]
[null,"　（販売数を把握するために必要な項目となります。目安で構いませんのでご協力願います。）"]
[]
[null,"※ヴィンテージ、価格形態、AOC、タイプ、セパージュの５項目につきましては、セルをクリックしますと枠右下にリストマークが出ますので"]
[null,"　該当する項目を選択してください。（右図参照）"]
[null,"　文字を直接入力しますとエラーが出ますのでご注意ください。"]
[null,"　"]
[null,"◆セパージュについて……各品種ではなく、複数種の合計でしか"]
[null,"数字がわからない場合や非公開の場合は、備考欄に記載してください。"]
[null,"記入例：カベルネ・フラン、メルロで20％など"]
[]
[null,"◆ヴィンテージについて……赤：2010年以降、白：2012年以降のものでお願いいたします。甘口白はヴィンテージを問いません。"]
[null,"*商品の未着・誤着・返送に関する問い合わせ先：株式会社鈴与カーゴサービス　西内様　03-3878-0371　fumitaka.nishiuchi@suzuyo.co.jp　  "]
[null,"*ヴィンテージ、ワインに関する問い合わせ先：SOPEXA JAPON 川島　絵里子　03-5789-0081　value.bordeaux2015@sopexa.com"]
[null,"貴社名",null,null,"貴社ご住所","〒　　　",null,null,"貴社\nURL"]
[null,"ご担当者様名",null,null,"お問い合わせ先TEL",null,null,null,"ご担当者様連絡先"]
[null,"部署名",null,null,"FAX",null,null,null,"メール\nアドレス"]
[null,"※ワイン名は半角英数の全て大文字で、できる限り正式な綴りの入力にご協力のほど、お願いいたします　　　"]
["番号","ワイン名和文","ワイン名欧文","ヴィンテージ","タイプ","年間販売数\n（ケース単位）","生産社又はネゴシアン名欧文","価格形態","価格\n税込価格\nを入力","AOC","セパージュ\n①","%①","セパージュ\n②","%②","セパージュ③","%③","セパージュ④","%④","セパージュ⑤","%⑤","セパージュ合計","備考","輸入元","輸入元\n全角カナ表記","お問い合わせ先\n（掲載用）　\n(半角数字）","ご担当者","ご連絡先TEL\n(半角数字）","ご連絡先FAX\n(半角数字）","メールアドレス"]
["例","シャトー・モン・フジ","CHATEAU.MT.FUJI",2010,"軽い赤","1000ケース","Château  Bordeaux","小売価格",3200,"Blaye","Merlot",60,"Ｍａｌbec",10,null,null,null,null,null,null,100,"カベルネ・フラン、カベルネ・ソーヴィニヨン30％","㈱フジ商会","フジショウカイ","03-1234-5678","山田花子","03-9012-3456","03-9012-3459","rouge@bordeaux.vin.net"]
[1,null,null,null,"リストから選択",null,null,"リストから選択","数字のみ入力","リストから選択","品種をリストから選択","数字のみ入力","品種をリストから選択","数字のみ入力","品種をリストから選択","数字のみ入力","品種をリストから選択","数字のみ入力","品種をリストから選択","数字のみ入力",{"$f":"L35+N35+P35+R35+T35","v":{"$error":"#VALUE!"}},null,"誌面掲載用の正式社名を入力","㈱㈲は省略"]
[2,null,null,null,null,null,null,null,null,null,null,null,null,null,null,null,null,null,null,null,{"$f":"L36+N36+P36+R36+T36","v":0}]
[3,null,null,null,null,null,null,null,null,null,null,null,null,null,null,null,null,null,null,null,{"$f":"L37+N37+P37+R37+T37","v":0}]
[4,null,null,null,null,null,null,null,null,null,null,null,null,null,null,null,null,null,null,null,0]
[5,null,null,null,null,null,null,null,null,null,null,null,null,null,null,null,null,null,null,null,0]
[6,null,null,null,null,null,null,null,null,null,null,null,null,null,null,null,null,null,null,null,0]
[7,null,null,null,null,null,null,null,null,null,null,null,null,null,null,null,null,null,null,null,0]
[8,null,null,null,null,null,null,null,null,null,null,null,null,null,null,null,null,null,null,null,0]
[9,null,null,null,null,null,null,null,null,null,null,null,null,null,null,null,null,null,null,null,0]
[10,null,null,null,null,null,null,null,null,null,null,null,null,null,null,null,null,null,null,null,0]
[11,null,null,null,null,null,null,null,null,null,null,null,null,null,null,null,null,null,null,null,0]
[12,null,null,null,null,null,null,null,null,null,null,null,null,null,null,null,null,null,null,null,0]
[13,null,null,null,null,null,null,null,null,null,null,null,null,null,null,null,null,null,null,null,0]
[14,null,null,null,null,null,null,null,null,null,null,null,null,null,null,null,null,null,null,null,0]
[15,null,null,null,null,null,null,null,null,null,null,null,null,null,null,null,null,null,null,null,0]
[16,null,null,null,null,null,null,null,null,null,null,null,null,null,null,null,null,null,null,null,0]
[17,null,null,null,null,null,null,null,null,null,null,null,null,null,null,null,null,null,null,null,0]
[18,null,null,null,null,null,null,null,null,null,null,null,null,null,null,null,null,null,null,null,0]
[19,null,null,null,null,null,null,null,null,null,null,null,null,null,null,null,null,null,null,null,0]
[20,null,null,null,null,null,null,null,null,null,null,null,null,null,null,null,null,null,null,null,0]
[21,null,null,null,null,null,null,null,null,null,null,null,null,null,null,null,null,null,null,null,0]
[22,null,null,null,null,null,null,null,null,null,null,null,null,null,null,null,null,null,null,null,0]
[23,null,null,null,null,null,null,null,null,null,null,null,null,null,null,null,null,null,null,null,0]
[24,null,null,null,null,null,null,null,null,null,null,null,null,null,null,null,null,null,null,null,0]
[25,null,null,null,null,null,null,null,null,null,null,null,null,null,null,null,null,null,null,null,0]
[26,null,null,null,null,null,null,null,null,null,null,null,null,null,null,null,null,null,null,null,0]
[27,null,null,null,null,null,null,null,null,null,null,null,null,null,null,null,null,null,null,null,0]
[28,null,null,null,null,null,null,null,null,null,null,null,null,null,null,null,null,null,null,null,0]
[29,null,null,null,null,null,null,null,null,null,null,null,null,null,null,null,null,null,null,null,0]
[30,null,null,null,null,null,null,null,null,null,null,null,null,null,null,null,null,null,null,null,0]
[31,null,null,null,null,null,null,null,null,null,null,null,null,null,null,null,null,null,null,null,0]
[32,null,null,null,null,null,null,null,null,null,null,null,null,null,null,null,null,null,null,null,0]
[33,null,null,null,null,null,null,null,null,null,null,null,null,null,null,null,null,null,null,null,0]
[34,null,null,null,null,null,null,null,null,null,null,null,null,null,null,null,null,null,null,null,0]
[35,null,null,null,null,null,null,null,null,null,null,null,null,null,null,null,null,null,null,null,0]
[36,null,null,null,null,null,null,null,null,null,null,null,null,null,null,null,null,null,null,null,0]
[37,null,null,null,null,null,null,null,null,null,null,null,null,null,null,null,null,null,null,null,0]
[38,null,null,null,null,null,null,null,null,null,null,null,null,null,null,null,null,null,null,null,0]
[39,null,null,null,null,null,null,null,null,null,null,null,null,null,null,null,null,null,null,null,0]
[40,null,null,null,null,null,null,null,null,null,null,null,null,null,null,null,null,null,null,null,0]
[41,null,null,null,null,null,null,null,null,null,null,null,null,null,null,null,null,null,null,null,0]
[42,null,null,null,null,null,null,null,null,null,null,null,null,null,null,null,null,null,null,null,0]
[43,null,null,null,null,null,null,null,null,null,null,null,null,null,null,null,null,null,null,null,0]
[44,null,null,null,null,null,null,null,null,null,null,null,null,null,null,null,null,null,null,null,0]
[45,null,null,null,null,null,null,null,null,null,null,null,null,null,null,null,null,null,null,null,0]
[46,null,null,null,null,null,null,null,null,null,null,null,null,null,null,null,null,null,null,null,0]
[47,null,null,null,null,null,null,null,null,null,null,null,null,null,null,null,null,null,null,null,0]
[48,null,null,null,null,null,null,null,null,null,null,null,null,null,null,null,null,null,null,null,0]
[49,null,null,null,null,null,null,null,null,null,null,null,null,null,null,null,null,null,null,null,0]
[50,null,null,null,null,null,null,null,null,null,null,null,null,null,null,null,null,null,null,null,0]
[51,null,null,null,null,null,null,null,null,null,null,null,null,null,null,null,null,null,null,null,0]

{"sheet":"リスト","index":1,"n_rows":49,"n_cols":7,"rows_kept":49,"cut":false,"hidden":false,"merged":[]}
["Choisir Appellation","Choisir Type","Choisir Cépage","price","vintage","AOC和文"]
["Barsac","軽い辛口白","Cabernet Franc","小売価格",2010,"バルサック","Barsac"]
["Blaye","コクのある辛口白","Cabernet Sauvignon","オープン価格",2011,"ブライ","Blaye"]
["Blaye - Côtes de Bordeaux","甘口白","Malbec",null,2012,"ブライ・コート・ド・ボルドー","Blaye Côtes de Bordeaux"]
["Bordeaux","軽い赤","Merlot",null,2013,"ボルドー","Bordeaux"]
["Bordeaux Clairet","ミディアムボディの赤","Muscadelle",null,2014,"ボルドー・クレレ","Bordeaux Clairet"]
["Bordeaux Haut-Benauge","重厚な赤","Petit Verdot",null,null,"ボルドー・オー・ブノージュ","Bordeaux Haut-Benauge"]
["Bordeaux Rosé","ロゼ＆クレレ","Sauvignon Blanc",null,null,"ボルドー・ロゼ","Bordeaux Rosé"]
["Bordeaux Supérieur","クレマン","Sauvignon Gris",null,null,"ボルドー・シュペリウール","Bordeaux Supérieur"]
["Bourg ",null,"Sémillon",null,null,"ブール","Bourg "]
["Cadillac",null,null,null,null,"カディヤック","Cadillac"]
["Cadillac - Côtes de Bordeaux",null,null,null,null,"カディヤック・コート・ド・ボルドー","Cadillac - Côtes de Bordeaux"]
["Canon Fronsac",null,null,null,null,"カノン・フロンサック","Canon Fronsac"]
["Castillon - Côtes de Bordeaux",null,null,null,null,"カスティヨン・コート・ド・ボルドー","Castillon - Côtes de Bordeaux"]
["Cérons",null,null,null,null,"セロン","Cérons"]
["Côtes de Blaye",null,null,null,null,"コート・ド・ブライ","Côtes de Blaye"]
["Côtes de Bordeaux",null,null,null,null,"コート・ド・ボルドー","Côtes de Bordeaux"]
["Côtes de Bordeaux Saint-Marcaire",null,null,null,null,"コート・ド・ボルドー・サン・マケール","Côtes de Bordeaux Saint-Marcaire"]
["Côtes de Bourg",null,null,null,null,"コート・ド・ブール","Côtes de Bourg"]
["Crémant de Bordeaux",null,null,null,null,"クレマン・ド・ボルドー","Crémant de Bordeaux"]
["Entre-Deux-Mers",null,null,null,null,"アントル・ドゥー・メール","Entre-Deux-Mers"]
["Entre-Deux-Mers-Haut-Benauge",null,null,null,null,"アントル・ドゥー・メール・オー・ブノーシュ","Entre-Deux-Mers-Haut-Benauge"]
["Francs - Côtes de Bordeaux ",null,null,null,null,"フラン・コート・ド・ボルドー","Francs - Côtes de Bordeaux "]
["Fronsac",null,null,null,null,"フロンサック","Fronsac"]
["Graves",null,null,null,null,"グラーヴ","Graves"]
["Graves de Vayres",null,null,null,null,"グラーヴ・ド・ヴェイル","Graves de Vayres"]
["Graves Supérieures",null,null,null,null,"グラーヴ・シュペリウール","Graves Supérieures"]
["Haut-Médoc",null,null,null,null,"オーメドック","Haut-Médoc"]
["Lalande-de-Pomerol",null,null,null,null,"ラランド・ド・ポムロール","Lalande-de-Pomerol"]
["Listrac-Médoc",null,null,null,null,"リストラック・メドック","Listrac-Médoc"]
["Loupiac",null,null,null,null,"ルーピアック","Loupiac"]
["Lussac-Saint-Emilion",null,null,null,null,"リュサック・サン・テミリオン","Lussac-Saint-Emilion"]
["Margaux",null,null,null,null,"マルゴー","Margaux"]
["Médoc",null,null,null,null,"メドック","Médoc"]
["Montagne-Saint-Emilion",null,null,null,null,"モンターニュ・サン・テミリオン","Montagne-Saint-Emilion"]
["Moulis-en-Médoc",null,null,null,null,"ムーリ・アン・メドック","Moulis-en-Médoc"]
["Pauillac",null,null,null,null,"ポイヤック","Pauillac"]
["Pessac-Léognan",null,null,null,null,"ペサック・レオニャン","Pessac-Léognan"]
["Pomerol",null,null,null,null,"ポムロール","Pomerol"]
["Premières Côtes de Blaye",null,null,null,null,"プルミエール・コート・ド・ボルドー","Premières Côtes de Blaye"]
["Puisseguin-Saint-Emilion",null,null,null,null,"ピュイスガン・サン・テミリオン","Puisseguin-Saint-Emilion"]
["Saint-Emilion",null,null,null,null,"サン・テミリオン","Saint-Emilion"]
["Saint-Emilion Grand Cru",null,null,null,null,"サン・テミリオン・グラン・クリュ","Saint-Emilion Grand Cru"]
["Saint-Estèphe",null,null,null,null,"サン・テステフ","Saint-Estèphe"]
["Saint-Georges-Saint-Emilion",null,null,null,null,"サン・ジョルジュ・サン・テミリオン","Saint-Georges-Saint-Emilion"]
["Saint-Julien",null,null,null,null,"サン・ジュリアン","Saint-Julien"]
["Sainte-Croix-du-Mont",null,null,null,null,"サン・クロワ・デュ・モン","Sainte-Croix-du-Mont"]
["Sainte-Foy-Bordeaux",null,null,null,null,"サン・フォア・ボルドー","Sainte-Foy-Bordeaux"]
["Sauternes",null,null,null,null,"ソーテルヌ","Sauternes"]

{"sheet":"Sheet3","index":2,"n_rows":0,"n_cols":0,"rows_kept":0,"cut":false,"hidden":false,"merged":[]}